bitfinex/quotes_ETHUSD_20260208
["timestamp","ask_amount","ask_price","bid_price","bid_amount"]
[1770567262938,3.308,2112.4,2112.0,0.001]
[1770567263338,1.183544,2112.3,2112.0,0.001]
[1770567263541,1.12392465,2112.2,2112.0,0.001]
[1770567263847,1.183544,2112.3,2111.8,0.001]
[1770567263848,2.30746865,2112.3,2111.8,0.001]
[1770567264033,1.183544,2112.3,2111.6,0.001]
[1770567265348,2.30746865,2112.3,2111.6,0.001]
[1770567266268,1.183544,2112.3,2111.6,0.001]
[1770567267183,1.183544,2112.3,2111.6,1.11328313]
[1770567267361,3.308,2112.2,2111.6,1.11328313]
[1770567269149,3.308,2112.2,2111.7,1.11228313]
[1770567270161,4.4916017,2112.2,2111.7,1.11228313]
[1770567270351,4.4916017,2112.2,2111.6,1.11328313]
[1770567270560,4.4916017,2112.2,2111.6,2.2972161]
[1770567271670,3.308,2112.2,2111.7,1.11228313]
[1770567272767,3.308,2112.2,2111.9,0.001]
[1770567272963,3.31,2112.2,2111.9,0.001]
[1770567277449,1.18551969,2112.4,2112.0,1.11228313]
[1770567277450,0.002,2112.4,2112.0,1.11228313]
[1770567278758,0.002,2112.4,2112.1,1.18365607]
[1770567278956,0.002,2112.4,2112.1,2.2959392]
[1770567282152,0.002,2112.4,2112.2,1.11228313]
[1770567283989,9.388e-05,2112.7,2112.2,2.29586104]
[1770567285183,1.18520791,2112.9,2112.4,1.14798499]
[1770567285184,0.002,2112.9,2112.4,1.14798499]
[1770567286278,0.002,2112.9,2112.5,1.14798499]
[1770567286478,0.002,2112.7,2112.5,1.14798499]
[1770567288388,0.002,2112.7,2112.6,2.33136092]
[1770567291586,0.002,2112.7,2112.1,1.14898499]
[1770567291792,0.002,2112.7,2112.3,1.18351935]
[1770567294490,0.002,2112.7,2112.3,2.33150434]
[1770567294708,0.002,2112.7,2112.3,1.14798499]
[1770567294898,0.002,2112.7,2112.3,2.33149326]
[1770567295671,0.002,2112.7,2112.3,1.18350827]
[1770567295976,0.002,2112.7,2112.2,1.18355958]
[1770567296180,1.16464627,2112.7,2111.9,0.001]
[1770567296487,1.16464627,2112.7,2111.3,0.001]
[1770567296488,1.16264627,2112.0,2111.3,0.001]
[1770567296670,1.16264627,2111.5,2110.5,0.001]
[1770567296976,1.16264627,2111.5,2109.9,1.14898499]
[1770567296977,1.16264627,2110.3,2109.9,0.001]
[1770567297185,1.16264627,2109.7,2108.1,1.14798499]
[1770567297382,1.16264627,2109.1,2107.8,1.14798499]
[1770567297580,1.16264627,2108.9,2108.0,1.18595027]
[1770567297796,6.82438705,2108.8,2108.0,1.18595027]
[1770567297985,7.98703332,2108.8,2108.0,1.18595333]
[1770567298182,4.36793385,2108.7,2107.9,1.1859701]
[1770567299176,4.36793385,2108.7,2107.5,4.74490056]
[1770567299373,4.36793385,2108.7,2108.2,3.77963735]
[1770567300006,4.36793385,2108.7,2107.7,1.14798499]
[1770567300222,0.1024,2109.3,2107.5,4.78729839]
[1770567300223,1.16264627,2109.8,2108.5,0.04239783]
[1770567300380,1.16264627,2110.0,2108.6,1.14798499]
[1770567300574,1.16264627,2110.3,2108.9,0.04239783]
[1770567300778,1.18464588,2110.4,2108.9,1.19038282]
[1770567301075,1e-08,2109.9,2109.2,0.04239783]
[1770567301279,1e-08,2109.9,2109.3,1.18522732]
[1770567301496,1e-08,2109.9,2109.4,3.309]
[1770567301780,1.18432895,2110.9,2109.5,1.19038282]
[1770567302103,1.16264627,2111.1,2109.5,1.19038282]
[1770567302104,1.16264627,2111.1,2109.8,0.04239783]
[1770567302406,4.493198,2111.2,2109.8,1.19038282]
[1770567302914,1.16264627,2111.1,2109.6,3.31]
[1770567303227,4.493198,2111.2,2109.7,1.19038282]
[1770567303384,1.16264627,2111.3,2109.9,1.14798499]
[1770567303711,1.16264627,2111.3,2109.8,1.18494644]
[1770567304293,1.2050441,2111.3,2109.8,1.18494644]
[1770567304618,1.16264627,2111.3,2109.8,1.18494644]
[1770567305297,1.18416066,2111.2,2109.8,1.18494644]
[1770567305699,2.34680693,2111.2,2109.8,1.18494644]
[1770567305906,1.16264627,2111.1,2109.8,1.18494644]
[1770567307102,0.6,2110.9,2109.8,1.18494644]
[1770567307985,1.78438014,2110.9,2109.8,1.18494644]
[1770567310102,0.6,2110.9,2109.8,1.18494644]
[1770567311016,0.6,2110.9,2110.0,1.14898499]
[1770567311310,0.002,2110.7,2110.0,1.14898499]
[1770567312019,0.002,2110.9,2110.4,1.18460955]
[1770567312208,0.002,2110.9,2110.5,4.45898499]
[1770567312603,0.002,2111.8,2110.6,1.14798499]
[1770567314607,1.18188311,2111.8,2110.7,1.18444118]
[1770567314922,0.002,2111.8,2110.7,1.18444118]
[1770567315287,0.002,2111.8,2110.8,1.16694217]
[1770567315506,0.002,2111.8,2110.8,1.20934]
[1770567316498,0.002,2111.8,2111.0,1.16694217]
[1770567316692,0.002,2111.8,2111.1,3.31]
[1770567318633,0.002,2111.8,2111.3,1.16694217]
[1770567319396,0.002,2111.8,2111.4,1.20934]
[1770567320494,0.002,2112.5,2111.4,1.20934]
[1770567320694,0.002,2112.5,2111.5,2.35093459]
[1770567321130,0.002,2112.5,2111.6,1.16694217]
[1770567321320,0.002,2112.5,2111.7,4.47694217]
[1770567321825,0.002,2112.5,2111.7,3.31]
[1770567322721,0.002,2112.5,2111.8,1.18382422]
[1770567323412,0.002,2112.5,2111.5,4.73579829]
[1770567323413,1.18462165,2112.5,2111.5,4.73579829]
[1770567323619,1.18462165,2112.5,2111.7,1.18386172]
[1770567324004,0.6,2112.3,2111.6,1.18393177]
[1770567324204,0.6,2112.3,2111.7,1.1838796]
[1770567326230,1.1855721,2112.3,2111.9,0.001]
[1770567326434,2.36819375,2112.3,2111.9,0.001]
[1770567326731,2.36819375,2112.3,2111.6,0.001]
[1770567329004,2.36627772,2112.1,2111.6,0.001]
[1770567329203,1.18262165,2112.0,2111.6,0.001]
[1770567329601,1.18365607,2112.1,2111.6,0.001]
[1770567329929,1.18262165,2112.0,2111.6,0.001]
[1770567331526,1.18462165,2112.3,2111.6,0.001]
[1770567333423,0.002,2112.3,2111.6,0.001]
[1770567334610,0.002,2112.3,2110.9,1.18428566]
[1770567334611,1.18262165,2112.1,2110.9,1.18428566]
[1770567335308,1.18262165,2112.1,2111.1,1.18421535]
[1770567335503,1.17866816,2111.9,2110.8,1.18538506]
[1770567336934,1.18371212,2112.0,2110.8,2.35232723]
[1770567337146,1.18371212,2112.0,2111.8,0.001]
[1770567337309,1.18371212,2112.0,2111.5,0.001]
[1770567337510,5.91747013,2112.1,2111.5,0.001]
[1770567338534,1.18262165,2112.0,2111.5,0.001]
[1770567340140,2.36638982,2111.9,2111.5,0.001]
[1770567343910,1.18262165,2111.8,2110.8,1.18538506]
[1770567344138,1.18262165,2111.8,2110.8,1.18538164]
[1770567344436,1.18371212,2112.0,2111.1,1.16694217]
[1770567345941,1.18369307,2112.1,2111.1,1.16694217]
[1770567346553,1.18363964,2112.2,2111.3,1.18126093]
[1770567346719,0.002,2112.3,2111.3,1.18126093]
[1770567346720,1.18558188,2112.3,2111.3,1.18126093]
[1770567347048,2.39210402,2112.3,2111.3,1.18126093]
[1770567347253,1.20652214,2112.2,2111.2,1.18416066]
[1770567348237,1.24891997,2112.2,2111.0,4.49324055]
[1770567348418,1.18365607,2112.1,2111.1,1.18421256]
[1770567348621,1.20652214,2112.0,2111.1,1.18421256]
[1770567349230,1.20652214,2112.0,2111.3,0.001]
[1770567349433,0.002,2111.8,2111.3,0.001]
[1770567354261,1.20852214,2111.8,2111.0,0.001]
[1770567354547,1.20652214,2111.5,2111.0,0.001]
[1770567355128,3.309,2111.7,2111.0,0.001]
[1770567355326,1.20652214,2111.6,2111.0,0.001]
[1770567355770,1.18399242,2111.5,2111.0,0.001]
[1770567357530,2.39051456,2111.5,2111.0,0.001]
[1770567360558,1.20652214,2111.4,2110.8,0.001]
[1770567361461,1.18410458,2111.3,2110.8,0.001]
[1770567361657,8.04483368,2111.7,2110.8,0.001]
[1770567361658,1.20652214,2111.7,2110.8,0.001]
[1770567361851,8.04587723,2111.6,2110.8,0.001]
[1770567362362,8.04587723,2111.6,2111.2,0.001]
[1770567362660,8.04787723,2111.6,2111.2,0.001]
[1770567362852,8.04787723,2111.6,2111.2,1.18226093]
[1770567362853,0.002,2111.6,2111.2,1.18226093]
[1770567363554,0.002,2111.6,2111.2,0.001]
[1770567367961,1.20852214,2111.6,2111.2,0.001]
[1770567368165,1.20852214,2111.6,2111.0,0.001]
[1770567368349,1.20652214,2111.5,2110.8,0.001]
[1770567369243,1.24891997,2111.5,2110.8,0.001]
[1770567369470,1.20652214,2111.3,2110.8,0.001]
[1770567370869,1.18404849,2111.4,2110.8,0.001]
[1770567371450,4.73619399,2111.5,2110.8,0.001]
[1770567371956,5.94271613,2111.5,2110.8,0.001]
[1770567373480,0.002,2111.6,2111.0,1.18126093]
[1770567373975,1.18594249,2111.6,2110.8,1.18534452]
[1770567374674,1.18594249,2111.6,2111.0,1.11209007]
[1770567374972,0.002,2111.4,2111.0,0.001]
[1770567380475,1.18604849,2111.4,2111.0,0.001]
[1770567380681,0.002,2111.4,2111.0,1.10449129]
[1770567380887,0.002,2111.6,2111.0,1.10449129]
[1770567382783,0.002,2111.6,2111.2,1.10349129]
[1770567384795,0.002,2111.6,2111.0,4.73786703]
[1770567384986,0.004,2111.6,2111.1,1.18417108]
[1770567385183,0.004,2111.6,2111.2,1.18415335]
[1770567385874,0.004,2111.6,2111.0,2.28872865]
[1770567386089,0.004,2111.6,2111.1,1.18421269]
[1770567386794,0.004,2111.6,2111.0,0.001]
[1770567386974,1.19015539,2111.6,2111.0,0.001]
[1770567387374,1.19015539,2111.6,2111.2,0.001]
[1770567387568,0.002,2111.4,2111.2,0.001]
[1770567387765,0.002,2111.4,2111.0,0.001]
[1770567387964,0.001,2111.3,2111.0,0.001]
[1770567390493,0.002,2111.6,2111.1,1.10349129]
[1770567390694,0.003,2111.6,2111.1,1.10349129]
[1770567391076,0.003,2111.6,2111.0,0.001]
[1770567391077,1.18915539,2111.6,2111.0,0.001]
[1770567391270,1.18815539,2111.6,2110.8,0.001]
[1770567395903,1.18399242,2111.5,2110.8,0.001]
[1770567396079,1.18399242,2111.5,2110.8,1.10449129]
[1770567397314,1.18399242,2111.5,2110.8,0.001]
[1770567398622,4.73777598,2111.6,2110.8,0.001]
[1770567399682,4.73777598,2111.6,2111.0,0.001]
[1770567400019,0.002,2111.3,2111.0,0.001]
[1770567406596,0.002,2111.3,2111.0,1.12568662]
[1770567406909,0.002,2111.5,2111.0,1.12568662]
[1770567407216,0.002,2111.8,2111.4,1.12468662]
[1770567407915,1.20400086,2111.7,2111.0,0.001]
[1770567408522,1.18393635,2111.6,2111.0,0.001]
[1770567408905,1.20400086,2111.5,2111.0,0.001]
[1770567410419,1.18404849,2111.4,2111.0,0.001]
[1770567412622,1.18604849,2111.4,2111.0,0.001]
[1770567413422,2.39004935,2111.4,2111.0,0.001]
[1770567413624,1.20400086,2111.3,2110.8,0.001]
[1770567413934,1.20400086,2111.1,2110.2,0.001]
[1770567414102,1.20400086,2111.1,2110.3,0.001]
[1770567414826,1.18427285,2111.0,2110.3,0.001]
[1770567415824,1.20400086,2110.9,2110.3,0.001]
[1770567417195,1.18438506,2110.8,2110.3,0.001]
[1770567418111,1.20400086,2110.7,2110.3,0.001]
[1770567418298,1.20400086,2110.7,2110.0,0.001]
[1770567418498,1.20400086,2110.7,2110.2,0.001]
[1770567419122,1.18438506,2110.8,2110.2,0.001]
[1770567419302,1.20400086,2110.8,2110.2,0.001]
[1770567419872,1.20400086,2110.8,2110.0,0.001]
[1770567420313,1.20400086,2110.6,2110.0,0.001]
[1770567420506,1.20400086,2110.4,2110.0,0.001]
[1770567420842,3.31,2110.5,2110.1,0.001]
[1770567421147,1.20400086,2110.4,2110.0,0.001]
[1770567421300,1.18466568,2110.3,2110.0,0.001]
[1770567422230,4.83990601,2110.9,2110.0,1.12568662]
[1770567422529,2.38838592,2110.8,2110.0,0.001]
[1770567422722,1.20400086,2110.7,2110.0,0.001]
[1770567423674,1.20400086,2110.5,2110.0,0.001]
[1770567423945,1.20400086,2110.4,2110.0,0.001]
[1770567424134,1.20400086,2110.4,2109.9,0.001]
[1770567424333,1.20400086,2110.4,2109.5,4.22349449]
[1770567424550,1.20400086,2110.4,2108.9,3.311]
[1770567424551,1.20400086,2109.9,2108.9,1.18545065]
[1770567424734,4.51500086,2109.9,2108.9,2.31013727]
[1770567425243,4.51500086,2109.9,2109.0,1.12468662]
[1770567425418,1.30640086,2110.2,2109.0,1.12468662]
[1770567425623,3.4134,2110.0,2109.0,2.31007713]
[1770567425936,3.4134,2110.0,2109.0,1.12468662]
[1770567426140,3.4134,2110.0,2109.0,2.31007873]
[1770567426961,3.4134,2110.0,2109.0,1.12468662]
[1770567427731,1.18489027,2109.9,2109.0,1.12468662]
[1770567428252,1.18489027,2109.9,2109.1,1.12468662]
[1770567428462,2.33727727,2111.6,2110.2,1.12468662]
[1770567428463,1.18416066,2111.2,2110.2,1.12468662]
[1770567429057,1.18609018,2111.4,2110.2,1.12468662]
[1770567430131,1.18609018,2111.4,2110.3,1.18466568]
[1770567430320,1.18609018,2111.4,2110.4,1.12468662]
[1770567430723,0.002,2111.4,2110.4,1.12468662]
[1770567432362,0.002,2111.4,2110.6,1.12468662]
[1770567435221,0.002,2111.4,2110.8,1.0965573]
[1770567437427,0.002,2111.4,2110.7,1.0965573]
[1770567437836,0.6,2111.2,2110.7,1.0965573]
[1770567438628,0.6,2111.2,2110.8,1.0965573]
[1770567440141,0.002,2111.0,2110.8,1.0965573]
[1770567441940,0.002,2111.0,2110.5,1.0965573]
[1770567442333,0.002,2111.2,2110.5,1.0965573]
[1770567444061,0.002,2111.2,2110.1,4.73889549]
[1770567444062,0.002,2111.2,2110.3,2.2812156]
[1770567444241,0.002,2111.2,2110.4,1.0965573]
[1770567444842,0.002,2111.2,2110.6,1.0965573]
[1770567445853,0.002,2111.2,2110.6,1.1415618]
[1770567447762,0.002,2111.2,2110.9,1.0965573]
[1770567449666,0.002,2111.2,2111.1,1.0965573]
[1770567451546,0.002,2111.2,2110.9,2.28088267]
[1770567451769,0.002,2111.2,2111.0,1.0965573]
[1770567453067,0.002,2111.4,2111.1,1.0965573]
[1770567453735,0.002,2111.4,2111.2,2.28071796]
[1770567453933,0.002,2111.4,2111.3,1.0965573]
[1770567454344,0.002,2111.6,2111.3,1.0965573]
[1770567454548,0.002,2111.8,2111.2,1.18416066]
[1770567454549,0.002,2111.8,2111.4,1.0965573]
[1770567455765,0.002,2112.1,2111.8,1.0965573]
[1770567457069,1.13773413,2112.1,2110.9,1.0965573]
[1770567457386,1.13773413,2112.1,2111.0,1.18423059]
[1770567457570,0.6,2111.9,2111.0,1.18423059]
[1770567457867,1.18382422,2111.8,2111.0,1.18423059]
[1770567459145,1.13573413,2111.7,2110.8,1.18437608]
[1770567459339,1.13573413,2111.7,2110.7,2.28196765]
[1770567459546,1.18382422,2111.8,2111.0,1.0965573]
[1770567460376,1.18382422,2111.8,2111.0,2.28082619]
[1770567460677,1.18382422,2111.8,2110.9,1.18430592]
[1770567460845,1.18382422,2111.8,2110.8,1.1843463]
[1770567461364,1.18382422,2111.8,2110.9,1.18432635]
[1770567462047,1.18382422,2111.8,2110.9,1.0965573]
[1770567464987,0.6,2111.9,2111.1,1.17717522]
[1770567465280,1.18566475,2112.1,2111.1,1.17717522]
[1770567465452,0.002,2111.9,2111.1,1.17717522]
[1770567467183,0.002,2111.9,2111.1,1.18417297]
[1770567467384,5.09407705,2112.2,2111.1,1.18417297]
[1770567467385,0.35964423,2112.2,2111.3,1.17717522]
[1770567467759,0.002,2112.3,2111.6,1.17717522]
[1770567469270,0.002,2112.3,2111.7,2.3610555]
[1770567473009,0.002,2112.3,2111.6,1.18388466]
[1770567473309,1.185544,2112.3,2111.5,5.9130582]
[1770567474712,2.287012,2112.3,2111.2,1.17717522]
[1770567474879,1.101468,2112.2,2111.4,1.18404238]
[1770567475078,1.101468,2112.2,2111.4,1.18403255]
[1770567475284,0.002,2112.3,2111.6,1.18393635]
[1770567476386,0.002,2112.3,2111.6,2.36111157]
[1770567477906,0.602,2112.3,2111.6,2.36111157]
[1770567480785,0.602,2112.3,2111.6,2.40611607]
[1770567480992,0.002,2112.3,2111.7,1.17717522]
[1770567482182,1.103468,2112.3,2111.7,1.18386275]
[1770567482385,0.002,2112.3,2111.7,1.18386275]
[1770567483106,0.002,2112.3,2111.8,0.001]
[1770567483310,0.002,2112.1,2111.8,0.001]
[1770567484702,0.002,2112.1,2111.8,1.17817522]
[1770567486486,0.002,2112.1,2111.8,2.36197165]
[1770567486807,0.002,2112.1,2111.8,0.001]
[1770567487013,0.002,2112.1,2111.8,1.18482347]
[1770567487584,0.002,2112.1,2111.8,0.001]
[1770567487916,0.002,2112.1,2111.8,1.18482261]
[1770567488814,0.002,2112.1,2111.8,0.001]
[1770567494312,1.103468,2112.1,2111.8,0.001]
[1770567495298,1.103468,2112.1,2112.0,0.001]
[1770567495501,1.103468,2112.1,2111.5,0.001]
[1770567495701,0.002,2112.0,2111.5,0.001]
[1770567495915,1.14079555,2112.0,2111.5,0.001]
[1770567497605,0.002,2112.0,2111.5,0.001]
[1770567499938,0.002,2112.0,2111.6,2.32030769]
[1770567500999,0.002,2112.0,2111.7,1.13637134]
[1770567501699,0.002,2112.1,2111.7,1.13637134]
[1770567502116,0.002,2112.1,2111.8,2.32019556]
[1770567504523,0.002,2112.5,2111.8,2.32019556]
[1770567504524,0.002,2112.7,2111.9,1.18137584]
[1770567506931,0.002,2112.7,2112.0,2.32008346]
[1770567508006,1.14079555,2112.7,2111.6,4.44537134]
[1770567508333,0.002,2112.7,2112.2,1.13637134]
[1770567508706,0.002,2112.5,2112.2,1.13637134]
[1770567508908,0.002,2112.7,2112.3,2.31991534]
[1770567509109,0.002,2112.9,2112.4,1.13637134]
[1770567510433,0.002,2112.9,2112.3,1.183544]
[1770567512004,0.002,2112.9,2112.3,2.31991534]
[1770567520855,0.002,2112.7,2112.5,0.001]
[1770567521140,0.002,2112.9,2112.5,1.13737134]
[1770567523447,1.14079555,2112.9,2112.5,0.001]
[1770567524636,1.13879555,2112.7,2112.5,0.001]
[1770567525146,1.13879555,2112.7,2112.3,0.001]
[1770567526842,1.07058345,2112.5,2112.3,0.001]
[1770567529724,2.25407142,2112.4,2112.3,0.001]
[1770567532127,1.07058345,2112.4,2112.3,0.001]
[1770567532328,2.25405468,2112.5,2112.3,0.001]
[1770567532729,1.18347123,2112.5,2112.3,0.001]
[1770567540951,2.25405468,2112.5,2112.3,0.001]
[1770567541155,1.07058345,2112.4,2111.8,0.001]
[1770567541344,1.07058345,2112.2,2111.8,0.001]
[1770567542045,1.18347123,2112.5,2111.9,1.15163874]
[1770567542251,0.002,2112.7,2111.9,1.19664324]
[1770567542554,0.002,2112.9,2112.3,1.15163874]
[1770567543132,0.002,2112.9,2112.6,0.0450045]
[1770567543332,0.002,2113.2,2112.8,1.15163874]
[1770567543558,0.002,2113.4,2112.9,1.15163874]
[1770567545259,0.002,2113.4,2113.0,1.18315191]
[1770567545459,0.002,2113.4,2112.9,2.33481306]
[1770567545966,0.002,2113.2,2112.9,2.33481306]
[1770567546338,0.002,2113.2,2113.0,1.15163874]
[1770567546543,0.002,2113.4,2113.0,1.15163874]
[1770567546843,0.002,2113.4,2112.9,1.18317432]
[1770567547244,0.002,2113.4,2112.9,2.33481306]
[1770567548841,0.35549647,2113.7,2113.2,1.15163874]
[1770567549040,0.002,2113.8,2113.3,1.15163874]
[1770567549242,0.002,2113.8,2113.5,1.22785091]
[1770567549936,0.002,2113.8,2113.5,1.18284641]
[1770567551666,0.002,2113.8,2113.2,4.73210573]
[1770567551835,0.002,2113.8,2113.4,1.1829207]
[1770567552236,0.002,2113.8,2113.5,1.18287115]
[1770567553852,0.002,2113.8,2113.4,2.33453916]
[1770567554051,0.002,2113.8,2113.4,1.18290042]
[1770567554570,0.002,2114.3,2113.5,1.08041574]
[1770567554975,1.0927911,2114.3,2113.4,2.24882411]
[1770567555156,1.0927911,2114.3,2113.5,1.06592369]
[1770567555354,1.0927911,2114.3,2113.2,1.18300827]
[1770567555576,1.0927911,2114.3,2113.0,3.307]
[1770567555742,1.0927911,2114.3,2113.1,1.18308821]
[1770567555943,1.18248037,2114.2,2113.1,1.18308821]
[1770567556151,1.0907911,2114.1,2113.0,4.4901107]
[1770567556442,1.0907911,2114.1,2113.0,4.49013975]
[1770567556867,1.0907911,2113.3,2112.5,0.001]
[1770567557057,1.0907911,2113.2,2112.5,0.001]
[1770567557365,0.3809748,2114.0,2112.9,0.0450045]
[1770567557366,1.0907911,2113.8,2112.9,0.0450045]
[1770567558050,2.27355118,2113.7,2113.1,0.001]
[1770567558459,1.0907911,2113.6,2112.9,0.001]
[1770567560751,2.27360714,2113.7,2112.9,0.001]
[1770567562179,1.0907911,2113.6,2112.9,0.001]
[1770567563379,2.27365761,2113.6,2112.9,0.001]
[1770567564076,4.73091402,2113.8,2112.9,1.06692369]
[1770567564265,1.18259224,2114.0,2112.9,1.06692369]
[1770567564461,1.18259224,2114.0,2113.1,1.06592369]
[1770567565493,1.0907911,2114.0,2113.2,1.18303993]
[1770567566254,1.1845363,2114.1,2113.3,1.06592369]
[1770567567759,1.1845363,2114.1,2113.4,1.18292798]
[1770567568657,2.2753274,2114.1,2113.4,1.18292798]
[1770567569869,2.2753274,2114.1,2113.3,4.73192001]
[1770567570450,2.27533917,2114.1,2113.3,4.73192001]
[1770567570664,0.002,2113.9,2113.3,4.73192001]
[1770567573057,0.002,2113.9,2113.3,5.7978437]
[1770567573392,0.002,2113.9,2113.4,1.06592369]
[1770567575282,0.002,2113.9,2113.5,1.18287201]
[1770567575663,0.002,2113.9,2113.5,2.2487957]
[1770567577193,0.002,2113.9,2113.4,1.18292199]
[1770567577358,0.002,2113.9,2113.4,2.24884568]
[1770567577686,0.002,2113.9,2113.5,1.06592369]
[1770567578303,0.002,2114.1,2113.6,1.11092819]
[1770567578664,0.002,2114.5,2113.6,1.11092819]
[1770567578665,0.002,2114.5,2113.9,0.0450045]
[1770567578962,0.002,2114.5,2114.0,1.06592369]
[1770567579568,0.002,2114.5,2114.1,1.1825363]
[1770567582564,0.002,2114.5,2114.0,4.73014521]
[1770567583093,0.002,2114.3,2114.0,1.18259224]
[1770567583296,1.0927911,2114.5,2113.5,1.18286562]
[1770567583591,1.0927911,2114.5,2113.6,1.18281535]
[1770567583794,1.0927911,2114.5,2113.4,1.18289432]
[1770567584497,1.0927911,2114.5,2113.4,1.18292285]
[1770567585014,1.15167791,2114.3,2113.4,1.18292285]
[1770567585768,1.15167791,2114.3,2113.4,2.32727796]
[1770567586705,1.18236852,2114.4,2113.5,1.14435511]
[1770567586992,1.15167791,2114.4,2113.6,1.18281604]
[1770567588987,1.15167791,2114.2,2113.4,1.18288808]
[1770567591402,1.18252143,2114.2,2113.4,1.18288808]
[1770567591590,1.15167791,2114.1,2113.4,1.18288808]
[1770567593709,1.15167791,2114.0,2113.3,0.001]
[1770567594212,2.33417198,2114.2,2113.3,2.32833133]
[1770567594401,2.33417198,2114.2,2113.4,1.14435511]
[1770567594599,10.27,2114.7,2113.4,1.14435511]
[1770567594806,2.33404643,2114.4,2113.4,1.14435511]
[1770567595408,1.18432986,2114.5,2113.6,1.14535511]
[1770567595614,0.002,2114.2,2113.6,1.14535511]
[1770567595910,0.002,2114.2,2113.7,1.18276008]
[1770567596923,0.002,2114.2,2113.7,2.32711519]
[1770567597223,0.002,2114.2,2113.7,1.18276008]
[1770567597895,0.002,2114.2,2113.7,1.14435511]
[1770567599615,0.002,2114.2,2113.6,4.73204035]
[1770567599811,0.002,2114.2,2113.6,0.001]
[1770567600006,1.15367791,2114.2,2113.6,0.001]
[1770567601712,0.002,2114.2,2113.6,0.001]
[1770567603624,0.002,2114.2,2113.6,1.14535511]
[1770567603835,0.002,2114.2,2113.8,1.18935961]
[1770567604292,0.002,2114.5,2113.8,1.18935961]
[1770567605923,0.002,2114.5,2113.9,1.18264818]
[1770567606221,0.002,2114.5,2114.0,1.14435511]
[1770567608301,0.002,2114.5,2114.1,1.1825363]
[1770567608490,0.002,2114.2,2114.1,1.1825363]
[1770567608690,0.002,2114.5,2114.1,1.1825363]
[1770567609121,0.002,2114.4,2114.1,1.1825363]
[1770567609339,1.15167791,2114.9,2114.1,1.1825363]
[1770567609493,1.15167791,2114.9,2114.0,1.18256801]
[1770567610028,0.002,2115.0,2114.1,1.14435511]
[1770567610204,1.18403603,2115.0,2114.2,1.18248037]
[1770567610724,2.33571394,2115.0,2114.2,1.18248037]
[1770567612242,0.002,2115.0,2114.3,1.14435511]
[1770567612933,0.10417913,2115.1,2114.5,1.18935961]
[1770567614135,0.10417913,2115.1,2114.5,3.305]
[1770567614433,0.10417913,2115.1,2114.6,1.18225669]
[1770567616539,0.002,2115.2,2114.6,1.18225669]
[1770567619913,0.002,2115.2,2114.6,2.2081234]
[1770567620837,0.32850528,2116.3,2114.7,1.02586671]
[1770567621016,1.41024812,2116.3,2115.4,1.07087121]
[1770567621213,0.32850528,2116.3,2115.5,4.32986671]
[1770567621413,0.32850528,2116.3,2115.5,3.71161101]
[1770567621623,0.32850528,2116.3,2115.6,1.02586671]
[1770567622022,1.08174284,2116.2,2115.5,3.304]
[1770567622240,1.08174284,2116.2,2115.1,1.02586671]
[1770567622417,1.08174284,2116.0,2115.2,3.304]
[1770567622614,0.002,2116.1,2115.3,1.02586671]
[1770567623015,1.08374284,2116.1,2115.3,1.18186545]
[1770567623436,0.002,2116.1,2115.4,1.02586671]
[1770567623644,0.002,2116.1,2115.4,1.07087121]
[1770567624342,0.002,2116.1,2115.8,1.02586671]
[1770567624529,0.32850528,2116.3,2115.8,1.02586671]
[1770567625120,1.08174284,2117.0,2115.9,2.20739702]
[1770567625325,1.08174284,2117.0,2115.9,1.18153031]
[1770567626649,1.08174284,2117.0,2115.9,2.20739702]
[1770567626846,1.18084703,2117.2,2116.0,1.07087121]
[1770567627154,1.18084703,2117.2,2116.1,2.20728535]
[1770567627155,2.26258987,2117.2,2116.1,2.20728535]
[1770567628448,1.08174284,2117.1,2116.1,1.18141864]
[1770567629244,1.08174284,2117.2,2116.2,1.02586671]
[1770567629449,1.08174284,2117.2,2116.0,1.18145889]
[1770567631244,1.18086061,2117.1,2116.0,1.18145889]
[1770567631441,1.18086061,2117.1,2116.1,1.02586671]
[1770567631646,2.26260345,2117.1,2116.1,1.02586671]
[1770567631844,1.18086061,2117.1,2116.1,1.02586671]
[1770567632044,1.08174284,2117.0,2116.0,1.18145889]
[1770567632248,1.18086061,2117.1,2116.1,1.02586671]
[1770567632747,2.26260345,2117.1,2116.1,1.02586671]
[1770567633327,2.26260345,2117.1,2116.2,1.18136282]
[1770567633622,1.08174284,2117.0,2116.0,1.18144445]
[1770567633829,1.08174284,2117.0,2116.1,1.18141681]
[1770567634247,1.08174284,2117.0,2116.0,1.18143704]
[1770567634456,1.08374284,2117.0,2116.0,1.18143704]
[1770567635249,1.08374284,2117.0,2115.8,3.303]
[1770567635550,1.08174284,2116.8,2115.8,4.48458485]
[1770567635753,1.18097217,2116.9,2115.9,1.02586671]
[1770567635754,1.08174284,2116.9,2115.9,1.02586671]
[1770567635951,1.08174284,2116.9,2115.8,4.48458485]
[1770567637543,1.08174284,2116.7,2115.8,4.48458485]
[1770567637952,1.08174284,2116.7,2115.8,3.303]
[1770567638351,1.08174284,2116.7,2115.5,1.18170915]
[1770567638535,1.08174284,2116.7,2115.7,1.18160535]
[1770567638743,1.08174284,2116.7,2115.8,1.181584]
[1770567639149,1.08174284,2116.7,2115.7,1.18161023]
[1770567639544,1.08174284,2116.7,2115.8,1.1815844]
[1770567640042,1.08174284,2116.5,2115.6,1.18169786]
[1770567642458,1.18125118,2116.4,2115.6,1.18169786]
[1770567642658,1.08174284,2116.3,2115.5,3.302]
[1770567643061,1.18125118,2116.4,2115.5,4.48374671]
[1770567643255,2.26299402,2116.4,2115.5,4.48374671]
[1770567643450,2.26299402,2116.4,2115.5,3.302]
[1770567643654,1.08174284,2116.3,2115.5,3.302]
[1770567644061,1.08174284,2116.3,2115.5,4.48375317]
[1770567644259,1.08174284,2116.3,2115.5,3.302]
[1770567645139,2.23661916,2116.2,2115.5,3.302]